fUSD/lending_fUSD_20251201
["ID","MTS","AMOUNT","RATE_DAILY","PERIOD"]
[395280745,1764582636542,-150.0,0.00015963,2]
[395280746,1764582636552,-287.93,0.00015967,2]
[395280747,1764582636562,-150.0,0.00015967,2]
[395280748,1764582636571,-150.0,0.00015967,2]
[395280749,1764582636581,-150.0,0.00015967,2]
[395280750,1764582636591,-150.0,0.00015967,2]
[395280751,1764582636601,-150.0,0.00015983,2]
[395280752,1764582636611,-150.0,0.00015989,2]
[395280753,1764582636620,-150.0,0.00015989,2]
[395280754,1764582636631,-150.0,0.00015995,2]
[395280755,1764582636641,-500.0,0.00015999,2]
[395280756,1764582636651,-528.91,0.00015999,2]
[395280757,1764582636660,-500.0,0.00015999,2]
[395280758,1764582636670,-500.0,0.00015999,2]
[395280759,1764582636680,-500.0,0.00015999,2]
[395280760,1764582636690,-508.34597355,0.00015999,2]
[395280761,1764582636700,-500.0,0.00015999,2]
[395280762,1764582636710,-500.0,0.00015999,2]
[395280763,1764582636720,-500.0,0.00015999,2]
[395280764,1764582636729,-150.0,0.00016002,2]
[395280765,1764582636740,-150.0,0.00016003,2]
[395280766,1764582636749,-150.0,0.0001601,2]
[395280767,1764582636763,-150.0,0.00016016,2]
[395280768,1764582636772,-150.0,0.00016016,2]
[395280769,1764582636782,-150.0,0.00016016,2]
[395280770,1764582636792,-150.0,0.00016021,2]
[395280771,1764582636803,-150.0,0.00016026,2]
[395280772,1764582636812,-150.0,0.0001604,2]
[395280773,1764582636822,-150.0,0.00016043,2]
[395280774,1764582636834,-150.0,0.00016043,2]
[395280775,1764582636843,-150.0,0.00016043,2]
[395280776,1764582636852,-150.0,0.00016052,2]
[395280777,1764582636861,-150.0,0.00016052,2]
[395280778,1764582636871,-150.0,0.0001606,2]
[395280779,1764582636881,-150.0,0.00016063,2]
[395280780,1764582636890,-150.0,0.00016064,2]
[395280781,1764582636900,-150.0,0.0001607,2]
[395280782,1764582636909,-150.0,0.00016079,2]
[395280783,1764582636919,-150.0,0.0001609,2]
[395280784,1764582636928,-150.0,0.00016092,2]
[395280785,1764582636937,-150.0,0.00016095,2]
[395280786,1764582636946,-150.0,0.00016097,2]
[395280787,1764582636956,-150.0,0.00016098,2]
[395280788,1764582636965,-150.0,0.000161,2]
[395280789,1764582636974,-150.0,0.00016113,2]
[395280790,1764582636983,-150.0,0.00016118,2]
[395280791,1764582636993,-150.0,0.00016124,2]
[395280792,1764582637003,-150.0,0.00016137,2]
[395280793,1764582637012,-150.0,0.00016137,2]
[395280794,1764582637021,-150.0,0.00016137,2]
[395280795,1764582637031,-150.0,0.00016137,2]
[395280796,1764582637040,-150.0,0.00016137,2]
[395280797,1764582637050,-150.0,0.00016137,2]
[395280798,1764582637059,-150.0,0.00016137,2]
[395280799,1764582637067,-150.0,0.00016137,2]
[395280800,1764582637076,-1000.83,0.00016149,2]
[395280801,1764582637085,-150.0,0.0001615,2]
[395280802,1764582637094,-150.0,0.00016156,2]
[395280803,1764582637103,-150.0,0.00016161,2]
[395280804,1764582637113,-150.0,0.00016174,2]
[395280805,1764582637122,-150.0,0.00016176,2]
[395280806,1764582637132,-150.0,0.00016177,2]
[395280807,1764582637141,-150.0,0.00016179,2]
[395280808,1764582637150,-150.0,0.00016182,2]
[395280809,1764582637160,-150.0,0.00016184,2]
[395280810,1764582637169,-150.0,0.00016195,2]
[395280811,1764582637180,-334.56,0.00016196,2]
[395280812,1764582637189,-150.0,0.00016204,2]
[395280813,1764582637199,-150.0,0.0001621,2]
[395280814,1764582637208,-150.0,0.00016211,2]
[395280815,1764582637217,-150.0,0.00016214,2]
[395280816,1764582637227,-150.0,0.00016222,2]
[395280817,1764582637236,-150.0,0.00016222,2]
[395280818,1764582637245,-150.0,0.00016231,2]
[395280819,1764582637254,-150.0,0.00016231,2]
[395280820,1764582637263,-150.0,0.00016231,2]
[395280821,1764582637272,-150.0,0.00016233,2]
[395280822,1764582637282,-150.0,0.00016248,2]
[395280823,1764582637291,-150.0,0.00016253,2]
[395280824,1764582637301,-150.0,0.00016258,2]
[395280825,1764582637310,-150.0,0.00016258,2]
[395280826,1764582637319,-150.0,0.00016258,2]
[395280827,1764582637328,-150.0,0.00016264,2]
[395280828,1764582637337,-150.0,0.00016271,2]
[395280829,1764582637347,-150.0,0.00016272,2]
[395280830,1764582637356,-150.0,0.00016279,2]
[395280831,1764582637366,-150.0,0.00016285,2]
[395280832,1764582637375,-150.0,0.00016285,2]
[395280833,1764582637384,-210.0,0.00016286,2]
[395280834,1764582637395,-150.0,0.00016291,2]
[395280835,1764582637404,-150.0,0.00016307,2]
[395280836,1764582637413,-150.0,0.00016307,2]
[395280837,1764582637422,-150.0,0.00016307,2]
[395280838,1764582637431,-150.0,0.00016307,2]
[395280839,1764582637440,-150.0,0.00016311,2]
[395280840,1764582637449,-150.0,0.00016312,2]
[395280841,1764582637459,-150.0,0.00016322,2]
[395280842,1764582637468,-150.0,0.00016326,2]
[395280843,1764582637478,-150.0,0.0001633,2]
[395280844,1764582637489,-150.0,0.00016339,2]
[395280845,1764582637499,-150.0,0.00016349,2]
[395280846,1764582637509,-150.0,0.00016349,2]
[395280847,1764582637518,-150.0,0.00016355,2]
[395280848,1764582637528,-150.0,0.00016359,2]
[395280849,1764582637537,-150.0,0.0001636,2]
[395280850,1764582637547,-150.0,0.00016366,2]
[395280851,1764582637556,-500.0,0.00016367,2]
[395280852,1764582637565,-150.0,0.00016369,2]
[395280853,1764582637575,-150.0,0.00016373,2]
[395280854,1764582637584,-150.0,0.0001638,2]
[395280855,1764582637593,-150.0,0.00016388,2]
[395280856,1764582637602,-150.0,0.00016392,2]
[395280857,1764582637612,-150.0,0.00016392,2]
[395280858,1764582637621,-150.0,0.00016393,2]
[395280859,1764582637631,-150.0,0.00016395,2]
[395280860,1764582637640,-619.61917277,0.00016398,2]
[395280861,1764582637649,-1000.0,0.00016398,2]
[395280862,1764582637659,-1000.0,0.00016398,2]
[395280863,1764582637668,-150.0,0.00016404,2]
[395280864,1764582637677,-150.0,0.00016407,2]
[395280865,1764582637686,-150.0,0.0001642,2]
[395280866,1764582637695,-150.0,0.0001642,2]
[395280867,1764582637705,-150.0,0.0001642,2]
[395280868,1764582637714,-150.0,0.0001642,2]
[395280869,1764582637723,-150.0,0.00016427,2]
[395280870,1764582637733,-150.0,0.00016432,2]
[395280871,1764582637742,-150.0,0.00016434,2]
[395280872,1764582637751,-500.0,0.00016438,2]
[395280873,1764582637765,-500.0,0.00016438,2]
[395280874,1764582637775,-235.40092512,0.00016438,2]
[395280875,1764582637784,-14091.07,0.00016438,2]
[395280876,1764582637795,-300.0,0.00016438,2]
[395280877,1764582637805,-800.0,0.00016438,2]
[395280878,1764582637814,-150.0,0.00016446,2]
[395280879,1764582637823,-150.0,0.00016447,2]
[395280880,1764582637834,-150.0,0.0001645,2]
[395280881,1764582637843,-150.0,0.00016452,2]
[395280882,1764582637853,-150.0,0.00016465,2]
[395280883,1764582637862,-150.0,0.00016467,2]
[395280884,1764582637873,-150.0,0.00016469,2]
[395280886,1764582637883,-150.0,0.00016474,2]
[395280887,1764582637893,-150.0,0.00016477,2]
[395280889,1764582637903,-150.0,0.00016477,2]
[395280891,1764582637912,-150.0,0.00016484,2]
[395280892,1764582637922,-150.0,0.00016501,2]
[395280893,1764582637931,-150.0,0.00016501,2]
[395280894,1764582637940,-150.0,0.00016501,2]
[395280895,1764582637949,-150.0,0.00016504,2]
[395280896,1764582637958,-150.0,0.00016506,2]
[395280897,1764582637967,-150.0,0.00016514,2]
[395280898,1764582637977,-150.0,0.00016519,2]
[395280899,1764582637986,-150.0,0.00016523,2]
[395280900,1764582637995,-150.0,0.00016528,2]
[395280901,1764582638004,-150.0,0.00016539,2]
[395280902,1764582638014,-150.0,0.00016542,2]
[395280903,1764582638023,-150.0,0.00016543,2]
[395280904,1764582638033,-150.0,0.0001655,2]
[395280905,1764582638042,-150.0,0.00016555,2]
[395280906,1764582638051,-150.0,0.00016562,2]
[395280907,1764582638060,-150.0,0.00016562,2]
[395280908,1764582638070,-150.0,0.00016562,2]
[395280909,1764582638080,-150.0,0.00016562,2]
[395280910,1764582638090,-150.0,0.00016562,2]
[395280911,1764582638100,-150.0,0.0001658,2]
[395280912,1764582638112,-150.0,0.00016581,2]
[395280913,1764582638123,-150.0,0.00016582,2]
[395280914,1764582638135,-150.0,0.00016598,2]
[395280915,1764582638144,-150.0,0.000166,2]
[395280916,1764582638155,-150.0,0.00016604,2]
[395280917,1764582638165,-150.0,0.00016609,2]
[395280918,1764582638174,-150.0,0.00016609,2]
[395280919,1764582638184,-150.0,0.00016609,2]
[395280920,1764582638194,-150.0,0.00016617,2]
[395280921,1764582638204,-150.0,0.0001662,2]
[395280922,1764582638213,-150.0,0.00016622,2]
[395280923,1764582638223,-150.0,0.00016629,2]
[395280924,1764582638232,-427.65493559,0.00016633,2]
[395280925,1764582638241,-150.0,0.00016636,2]
[395280926,1764582638251,-150.0,0.00016639,2]
[395280927,1764582638262,-150.0,0.00016647,2]
[395280928,1764582638271,-150.0,0.00016647,2]
[395280929,1764582638281,-150.0,0.00016647,2]
[395280930,1764582638291,-150.0,0.00016647,2]
[395280931,1764582638301,-150.0,0.00016654,2]
[395280932,1764582638310,-150.0,0.00016656,2]
[395280933,1764582638319,-150.0,0.00016658,2]
[395280934,1764582638330,-150.0,0.00016663,2]
[395280935,1764582638339,-150.0,0.00016677,2]
[395280936,1764582638348,-150.0,0.00016689,2]
[395280937,1764582638358,-150.0,0.0001669,2]
[395280938,1764582638368,-150.0,0.00016691,2]
[395280939,1764582638378,-150.0,0.00016695,2]
[395280940,1764582638387,-150.0,0.00016697,2]
[395280941,1764582638396,-7369.11071384,0.000167,2]
[395280942,1764582638407,-150.0,0.00016703,2]
[395280943,1764582638416,-150.0,0.00016716,2]
[395280944,1764582638426,-150.0,0.00016717,2]
[395280945,1764582638435,-150.0,0.00016718,2]
[395280946,1764582638444,-7369.1107138,0.00016722,2]
[395280947,1764582638454,-222.76990664,0.00016725,2]
[395280948,1764582638463,-150.0,0.00016728,2]
[395280949,1764582638473,-150.0,0.00016732,2]
[395280950,1764582638484,-150.0,0.00016732,2]
[395280951,1764582638493,-150.0,0.00016735,2]
[395280952,1764582638504,-150.0,0.00016744,2]
[395280953,1764582638514,-150.0,0.00016744,2]
[395280954,1764582638523,-150.0,0.00016744,2]
[395280956,1764582638533,-7369.1107138,0.00016744,2]
[395280958,1764582638545,-150.0,0.0001675,2]
[395280960,1764582638555,-150.0,0.00016755,2]
[395280962,1764582638564,-2500.0,0.00016756,2]
[395280964,1764582638575,-150.0,0.00016765,2]
[395280966,1764582638584,-7369.1107138,0.00016767,2]
[395280968,1764582638594,-150.0,0.00016771,2]
[395280970,1764582638604,-150.0,0.00016774,2]
[395280972,1764582638613,-150.0,0.00016774,2]
[395280974,1764582638624,-7369.1107138,0.00016789,2]
[395280976,1764582638635,-150.0,0.00016792,2]
[395280978,1764582638644,-150.0,0.00016793,2]
[395280980,1764582638654,-150.0,0.00016798,2]
[395280982,1764582638663,-150.0,0.00016798,2]
[395280984,1764582638674,-150.0,0.00016798,2]
[395280986,1764582638683,-1000.0,0.000168,2]
[395280988,1764582638692,-10172.87526221,0.000168,2]
[395280990,1764582638701,-843.52608982,0.000168,5]
[395280992,1764582638711,-304.19338305,0.000168,2]
[395280994,1764582638720,-450.93743815,0.000168,2]
[395280996,1764582638731,-150.0,0.00016802,2]
[395280998,1764582638740,-150.0,0.00016807,2]
[395281000,1764582638750,-10172.87526213,0.00016811,2]
[395281002,1764582638763,-7369.1107138,0.00016811,2]
[395281004,1764582638773,-150.0,0.00016813,2]
[395281006,1764582638782,-173.83022775,0.00016815,2]
[395281008,1764582638792,-150.0,0.00016816,2]
[395281010,1764582638803,-150.0,0.00016816,2]
[395281012,1764582638812,-10172.87526213,0.00016822,2]
[395281014,1764582638822,-150.0,0.00016825,2]
[395281016,1764582638832,-150.0,0.00016832,2]
[395281018,1764582638847,-10172.87526213,0.00016833,2]
[395281020,1764582638856,-7369.1107138,0.00016833,2]
[395281022,1764582638866,-150.0,0.00016839,2]
[395281024,1764582638877,-150.0,0.00016841,2]
[395281026,1764582638886,-10172.87526213,0.00016844,2]
[395281028,1764582638896,-150.0,0.00016845,2]
[395281030,1764582638906,-150.0,0.00016851,2]
[395281032,1764582638915,-150.0,0.00016851,2]
[395281034,1764582638925,-10172.87526213,0.00016856,2]
[395281036,1764582638934,-7369.1107138,0.00016856,2]
[395281038,1764582638944,-150.0,0.00016859,2]
[395281040,1764582638953,-1406.30233538,0.00016863,2]
[395281042,1764582638962,-200.0,0.00016864,2]
[395281044,1764582638971,-150.0,0.00016865,2]
[395281046,1764582638981,-10172.87526213,0.00016867,2]
[395281048,1764582638991,-150.0,0.0001687,2]
[395281050,1764582639000,-150.0,0.00016876,2]
[395281052,1764582639010,-10172.87526213,0.00016878,2]
[395281054,1764582639020,-7369.1107138,0.00016878,2]
[395281056,1764582639031,-150.0,0.00016878,2]
[395281058,1764582639040,-10172.87526213,0.00016889,2]
[395281060,1764582639050,-150.0,0.00016889,2]
[395281062,1764582639060,-150.0,0.0001689,2]
[395281064,1764582639070,-150.0,0.00016892,2]
[395281066,1764582639080,-150.0,0.00016897,2]
[395281068,1764582639089,-151.0,0.00016897,2]
[395281070,1764582639099,-500.0,0.00016899,2]
[395281072,1764582639108,-302.35220506,0.00016899,2]
[395281074,1764582639118,-500.0,0.00016899,2]
[395281076,1764582639128,-500.0,0.00016899,2]
[395281078,1764582639137,-500.0,0.00016899,2]
[395281080,1764582639146,-500.0,0.00016899,2]
[395281082,1764582639155,-500.0,0.00016899,2]
[395281083,1764582639164,-500.0,0.00016899,2]
[395281084,1764582639173,-500.0,0.00016899,2]
[395281085,1764582639183,-500.0,0.00016899,2]
[395281086,1764582639193,-484.18397562,0.00016899,2]
[395281087,1764582639203,-500.0,0.00016899,2]
[395281088,1764582639214,-500.0,0.00016899,2]
[395281089,1764582639224,-500.0,0.00016899,2]
[395281090,1764582639234,-500.0,0.00016899,2]
[395281091,1764582639243,-500.0,0.00016899,2]
[395281092,1764582639253,-500.0,0.00016899,2]
[395281093,1764582639263,-500.0,0.00016899,2]
[395281094,1764582639272,-500.0,0.00016899,2]
[395281095,1764582639281,-500.0,0.00016899,2]
[395281096,1764582639291,-500.0,0.00016899,2]
[395281097,1764582639300,-500.0,0.00016899,2]
[395281098,1764582639309,-500.0,0.00016899,2]
[395281099,1764582639318,-500.0,0.00016899,2]
[395281100,1764582639327,-500.0,0.00016899,2]
[395281101,1764582639336,-620.43832599,0.00016899,2]
[395281102,1764582639345,-1231.98120029,0.00016899,5]
[395281104,1764582639354,-500.0,0.00016899,2]
[395281106,1764582639363,-500.0,0.00016899,2]
[395281108,1764582639373,-1121.9171,0.000169,2]
[395281110,1764582639384,-760000.0,0.000169,2]
[395281112,1764582639394,-10000.0,0.000169,2]
[395281114,1764582639403,-10172.87526213,0.000169,2]
[395281116,1764582639413,-7369.1107138,0.000169,2]
[395281118,1764582639422,-192.34044254,0.000169,2]
[395281120,1764582639431,-909.33429417,0.000169,2]
[395281122,1764582639441,-150.0,0.00016901,2]
[395281124,1764582639450,-150.0,0.00016901,2]
[395281126,1764582639459,-262.0,0.00016904,2]
[395281128,1764582639469,-150.0,0.00016905,2]
[395281130,1764582639478,-150.0,0.00016909,2]
[395281132,1764582639488,-150.0,0.00016912,2]
[395281134,1764582639498,-150.0,0.00016928,2]
[395281136,1764582639507,-150.0,0.00016932,2]
[395281138,1764582639516,-150.0,0.00016938,2]
[395281140,1764582639526,-150.0,0.00016939,2]
[395281142,1764582639535,-150.0,0.00016944,2]
[395281144,1764582639544,-1500.0,0.00016946,2]
[395281146,1764582639554,-150.0,0.00016948,2]
[395281148,1764582639564,-150.0,0.00016949,2]
[395281150,1764582639574,-150.0,0.00016959,2]
[395281152,1764582639584,-150.0,0.00016967,2]
[395281154,1764582639594,-153.31902391,0.00016986,2]
[395281157,1764582639607,-195.16840797,0.00016986,2]
[395281159,1764582639616,-258.82276166,0.00016986,2]
[395281161,1764582639626,-150.42787237,0.00016986,2]
[395281163,1764582639635,-151.79282376,0.00016986,2]
[395281165,1764582639644,-153.23447123,0.00016986,2]
[395281167,1764582639654,-191.30451307,0.00016986,2]
[395281169,1764582639663,-236.92658807,0.00016986,2]
[395281171,1764582639673,-150.38501482,0.00016986,2]
[395281173,1764582639683,-181.60520491,0.00016986,2]
[395281175,1764582639692,-151.2234943,0.00016986,2]
[395281177,1764582639702,-150.0,0.00016986,2]
[395281179,1764582639712,-152.43824806,0.00016986,2]
[395281181,1764582639722,-182.17370662,0.00016986,2]
[395281183,1764582639732,-202.34922021,0.00016986,2]
[395281185,1764582639742,-429.14046169,0.00016989,2]
[395281187,1764582639752,-429.14046169,0.0001699,2]
[395281189,1764582639765,-429.14046169,0.0001699,2]
[395281191,1764582639775,-150.0,0.00016992,2]
[395281193,1764582639784,-200.13285561,0.00016992,2]
[395281195,1764582639795,-150.0,0.00016992,2]
[395281197,1764582639804,-278.44546362,0.00016992,2]
[395281199,1764582639814,-500.0,0.00016992,2]
[395281201,1764582639823,-266.46737986,0.00016992,2]
[395281203,1764582639832,-150.0,0.00016992,2]
[395281205,1764582639844,-500.0,0.00016992,2]
[395281207,1764582639854,-500.0,0.00016992,2]
[395281209,1764582639863,-500.0,0.00016992,2]
[395281211,1764582639872,-150.0,0.00016992,2]
[395281213,1764582639882,-500.0,0.00016992,2]
[395281215,1764582639891,-500.0,0.00016992,2]
[395281217,1764582639900,-150.0,0.00016992,2]
[395281219,1764582639910,-500.0,0.00016992,2]
[395281221,1764582639919,-150.0,0.00016992,2]
[395281223,1764582639928,-500.0,0.00016992,2]
[395281225,1764582639937,-150.0,0.00016992,2]
[395281227,1764582639946,-500.0,0.00016992,2]
[395281229,1764582639956,-500.0,0.00016992,2]
[395281231,1764582639965,-151.0,0.00016997,2]
[395281233,1764582639974,-500.0,0.00016998,2]
[395281235,1764582639984,-541.73135515,0.00016998,2]
[395281237,1764582639993,-500.0,0.00016998,2]
[395281239,1764582640002,-14830.8680601,0.00016999,2]
[395281241,1764582640012,-500.0,0.00016999,2]
[395281243,1764582640022,-500.0,0.00016999,2]
[395281245,1764582640031,-500.0,0.00016999,2]
[395281247,1764582640040,-500.0,0.00016999,2]
[395281249,1764582640049,-500.0,0.00016999,2]
[395281251,1764582640060,-500.0,0.00016999,2]
[395281254,1764582640069,-500.0,0.00016999,2]
[395281257,1764582640078,-500.0,0.00016999,2]
[395281258,1764582640087,-500.0,0.00016999,2]
[395281259,1764582640096,-500.0,0.00016999,2]
[395281260,1764582640105,-500.0,0.00016999,2]
[395281261,1764582640114,-500.0,0.00016999,2]
[395281262,1764582640124,-500.0,0.00016999,2]
[395281263,1764582640134,-500.0,0.00016999,2]
[395281264,1764582640143,-500.0,0.00016999,2]
[395281265,1764582640153,-500.0,0.00016999,2]
[395281266,1764582640162,-500.0,0.00016999,2]
[395281267,1764582640171,-500.0,0.00016999,2]
[395281268,1764582640180,-500.0,0.00016999,2]
[395281269,1764582640189,-500.0,0.00016999,2]
[395281270,1764582640199,-354.77189094,0.00016999,2]
[395281271,1764582640208,-69249.8808789,0.00016999,2]
[395281272,1764582640217,-500.0,0.00016999,2]
[395281273,1764582640226,-500.0,0.00016999,2]
[395281274,1764582640236,-500.0,0.00016999,2]
[395281275,1764582640246,-500.0,0.00016999,2]
[395281276,1764582640255,-500.0,0.00016999,2]
[395281277,1764582640264,-500.0,0.00016999,2]
[395281278,1764582640273,-500.0,0.00016999,2]
[395281279,1764582640282,-447.66,0.00016999,2]
[395281280,1764582640291,-300.0,0.00016999,2]
[395281281,1764582640301,-307.29501972,0.00016999,2]
[395281282,1764582640311,-500.0,0.00016999,2]
[395281283,1764582640320,-500.0,0.00016999,2]
[395281284,1764582640329,-221.63,0.00016999,2]
[395281285,1764582640339,-500.0,0.00016999,2]
[395281286,1764582640348,-500.0,0.00016999,2]
[395281287,1764582640357,-500.0,0.00016999,2]
[395281288,1764582640366,-500.0,0.00016999,2]
[395281289,1764582640375,-473.83,0.00016999,2]
[395281290,1764582640385,-500.0,0.00016999,2]
[395281291,1764582640632,-500.0,0.00016999,2]
[395281292,1764582640642,-500.0,0.00016999,2]
[395281293,1764582640651,-500.0,0.00016999,2]
[395281294,1764582640660,-500.0,0.00016999,2]
[395281295,1764582640670,-500.0,0.00016999,2]
[395281296,1764582640680,-447.66,0.00016999,2]
[395281297,1764582640689,-500.0,0.00016999,2]
[395281298,1764582640699,-500.0,0.00016999,2]
[395281299,1764582640709,-500.0,0.00016999,2]
[395281300,1764582640719,-500.0,0.00016999,2]
[395281301,1764582640729,-500.0,0.00016999,2]
[395281302,1764582640739,-500.0,0.00016999,2]
[395281303,1764582640748,-500.0,0.00016999,2]
[395281304,1764582640759,-500.0,0.00016999,2]
[395281305,1764582640770,-192.81055565,0.00016999,2]
[395281306,1764582640780,-500.0,0.00016999,2]
[395281307,1764582640790,-500.0,0.00016999,2]
[395281308,1764582640799,-500.0,0.00016999,2]
[395281309,1764582640810,-500.0,0.00016999,2]
[395281311,1764582640820,-202.37,0.00016999,2]
[395281313,1764582640829,-500.0,0.00016999,2]
[395281315,1764582640840,-500.0,0.00016999,2]
[395281317,1764582640849,-510.9486006,0.00016999,2]
[395281319,1764582640859,-150.61555063,0.00016999,2]
[395281321,1764582640868,-300.0,0.00016999,2]
[395281323,1764582640879,-300.0,0.00016999,2]
[395281325,1764582640888,-300.0,0.00016999,2]
[395281327,1764582640898,-72689.83543641,0.00017,2]
[395281330,1764582640917,-974.17884844,0.00017,2]
[395281333,1764582640936,-2073.29589676,0.00017,2]
[395281335,1764582640948,-21319.06710451,0.00017,2]
[395281339,1764582641888,-498.98998669,0.00012873,2]
[395281340,1764582641901,-1.01001331,0.00012873,2]
[395281341,1764582641911,-500.0,0.00013421,2]
[395281342,1764582641923,-793.21725627,0.00013993,2]
[395281343,1764582642019,-360.78274373,0.00013993,2]
[395281344,1764582642028,-1691.87206264,0.00014021,2]
[395281345,1764582642038,-175.94033749,0.0001585,2]
[395281346,1764582642047,-468.83580845,0.000169,2]
[395281347,1764582642056,-6391.45860563,0.00017,2]
[395281348,1764582642067,-1244.16546589,0.00017,2]
[395281349,1764582642078,-2107.05010355,0.00017,2]
[395281350,1764582642093,-26047.2,0.00017,2]
[395281351,1764582642103,-3978.83197008,0.00017,2]
[395281352,1764582642114,-19942.25021689,0.00017,2]
[395281353,1764582642125,-675.01067611,0.00017,2]
[395281354,1764582642136,-1616.09048088,0.00017,2]
[395281355,1764582642331,-362.71470908,0.000169,2]
[395281356,1764582642340,-4065938.99573718,0.00017,2]
[395281357,1764582642349,-1733607.57793762,0.00017,2]
[395281358,1764582642379,-4979.76509798,0.00017,2]
[395281359,1764582642390,-1900.0,0.00017,2]
[395281360,1764582642400,-824.12503597,0.00017,2]
[395281370,1764582643191,-66325.27357473,0.00017,2]
[395281371,1764582643202,-25186.3396482,0.00017,2]
[395281374,1764582646827,-451173.65263062,0.00017,2]
[395281375,1764582646848,-71814.27104289,0.00017,2]
[395281376,1764582646859,-862.07121,0.00017,2]
[395281377,1764582646869,-460.90822261,0.00017,2]
[395281378,1764582646881,-16980.4662963,0.00017,2]
[395281379,1764582646892,-945.89473246,0.00017,2]
[395281380,1764582646902,-9098.36906577,0.00017,2]
[395281381,1764582646913,-2147.1,0.00017,2]
[395281458,1764583402061,3198.0,0.00014,4]
[395281459,1764583469085,599.86117,0.00025,120]
[395281469,1764583687619,433.525701,7.945e-05,2]
[395281482,1764583832192,-500.96785255,0.00012873,2]
[395281483,1764583832205,-300.0,0.00013728,2]
[395281484,1764583832214,-300.0,0.00013728,2]
[395281485,1764583832223,-300.0,0.00013728,2]
[395281486,1764583832232,-300.0,0.00013728,2]
[395281487,1764583832241,-195.0,0.00013804,2]
[395281488,1764583832250,-195.0,0.00014101,2]
[395281489,1764583832259,-300.0,0.00014159,2]
[395281490,1764583832269,-300.0,0.00014159,2]
[395281491,1764583832278,-250.0,0.0001416,2]
[395281492,1764583832288,-300.0,0.0001416,2]
[395281493,1764583832298,-195.0,0.0001416,2]
[395281494,1764583832312,-300.0,0.0001416,2]
[395281495,1764583832322,-195.0,0.0001416,2]
[395281496,1764583832332,-195.0,0.0001416,2]
[395281497,1764583832342,-300.0,0.00014324,2]
[395281498,1764583832351,-300.0,0.00014324,2]
[395281499,1764583832361,-923.26,0.0001542,2]
[395281500,1764583832371,-602.46,0.00015438,2]
[395281501,1764583832380,-420.0,0.00015509,2]
[395281502,1764583832389,-226.32783965,0.00015649,2]
[395281503,1764583832398,-175.75551943,0.00015649,2]
[395281504,1764583832408,-1000.0,0.0001565,2]
[395281505,1764583832418,-32313.63469303,0.0001565,2]
[395281508,1764583832465,-716.66,0.0001565,2]
[395281510,1764583832478,-28202.67797703,0.0001565,2]
[395281512,1764583832493,-820.7253007,0.0001565,2]
[395281540,1764583839229,-2177.62818745,0.0001565,2]
[395281541,1764583839241,-1028.9037125,0.0001565,2]
[395281542,1764583839252,-3665.04033945,0.0001565,2]
[395281543,1764583839263,-2761.46260999,0.0001565,2]
[395281544,1764583840239,-19942.75184512,0.0001565,2]
[395281545,1764583840293,-1298.31302932,0.0001565,2]
[395281546,1764583840305,-26917.73487069,0.0001565,2]